fUSD/lending_fUSD_20240811
["ID","MTS","AMOUNT","RATE_DAILY","PERIOD"]
[334621021,1723356639024,-176.31,0.00017915,2]
[334621023,1723356639033,-587.0,0.00017979,2]
[334621025,1723356639043,-427.53,0.00017982,2]
[334621027,1723356639052,-420.92,0.00017982,2]
[334621029,1723356639061,-419.09,0.00017982,2]
[334621031,1723356639070,-159.83,0.00017986,2]
[334621033,1723356639080,-676.33354543,0.00018,2]
[334621035,1723356639089,-591.67357848,0.00018,2]
[334621036,1723356639098,-2261.36970885,0.00018,2]
[334621038,1723356639107,-500.0,0.00018,2]
[334621040,1723356639115,-526.66030387,0.00018081,2]
[334621042,1723356639125,-13429.9487932,0.00018115,3]
[334621044,1723356639134,-155.0,0.00018182,2]
[334621046,1723356639143,-269.1394797,0.00018182,2]
[334621048,1723356639153,-13429.9487932,0.00018221,3]
[334621050,1723356639162,-25501.21215965,0.00018231,2]
[334621051,1723356639172,-164.14081487,0.00018418,2]
[334621053,1723356639181,-300.41,0.00018438,2]
[334621056,1723356639191,-167.0,0.00018444,2]
[334621058,1723356639200,-616.27456123,0.00018479,2]
[334621059,1723356639210,-150.0,0.00018508,2]
[334621061,1723356639219,-150.0,0.00018513,2]
[334621063,1723356639228,-150.0,0.00018515,2]
[334621065,1723356639238,-150.0,0.00018516,2]
[334621067,1723356639247,-150.0,0.0001852,2]
[334621069,1723356639256,-150.0,0.00018522,2]
[334621071,1723356639265,-150.0,0.00018523,2]
[334621073,1723356639274,-150.0,0.00018525,2]
[334621075,1723356639283,-150.0,0.00018528,2]
[334621077,1723356639292,-150.0,0.0001853,2]
[334621079,1723356639301,-150.0,0.00018531,2]
[334621081,1723356639311,-150.0,0.00018532,2]
[334621083,1723356639320,-150.0,0.00018535,2]
[334621085,1723356639330,-150.0,0.00018537,2]
[334621087,1723356639339,-150.0,0.00018544,2]
[334621089,1723356639348,-150.0,0.00018547,2]
[334621091,1723356639358,-150.0,0.00018548,2]
[334621093,1723356639367,-150.0,0.00018549,2]
[334621095,1723356639377,-150.0,0.0001855,2]
[334621097,1723356639386,-150.0,0.00018551,2]
[334621098,1723356639395,-152.59029434,0.00018553,2]
[334621100,1723356639405,-150.0,0.00018555,2]
[334621102,1723356639414,-150.0,0.00018555,2]
[334621104,1723356639424,-150.0,0.00018557,2]
[334621106,1723356639433,-150.0,0.00018557,2]
[334621108,1723356639442,-150.0,0.00018559,2]
[334621110,1723356639451,-150.0,0.00018561,2]
[334621112,1723356639461,-150.0,0.00018562,2]
[334621114,1723356639470,-150.0,0.00018563,2]
[334621116,1723356639479,-150.0,0.00018565,2]
[334621118,1723356639489,-150.0,0.00018566,2]
[334621120,1723356639498,-150.0,0.00018566,2]
[334621122,1723356639508,-150.0,0.00018567,2]
[334621124,1723356639517,-150.0,0.00018568,2]
[334621126,1723356639527,-150.0,0.00018571,2]
[334621128,1723356639536,-150.0,0.00018572,2]
[334621130,1723356639545,-150.0,0.00018576,2]
[334621132,1723356639554,-150.0,0.00018578,2]
[334621134,1723356639563,-150.0,0.00018579,2]
[334621136,1723356639572,-150.0,0.0001858,2]
[334621138,1723356639584,-150.0,0.00018582,2]
[334621140,1723356639593,-150.0,0.00018583,2]
[334621142,1723356639603,-150.0,0.00018586,2]
[334621144,1723356639612,-150.0,0.00018593,2]
[334621167,1723356639799,-150.0,0.00018593,2]
[334621169,1723356639809,-150.0,0.00018594,2]
[334621170,1723356639818,-150.0,0.00018596,2]
[334621172,1723356639827,-150.0,0.00018597,2]
[334621174,1723356639837,-150.0,0.00018597,2]
[334621176,1723356639846,-2443.46435883,0.000186,2]
[334621178,1723356639856,-150.0,0.000186,2]
[334621180,1723356639866,-150.0,0.00018601,2]
[334621182,1723356639875,-150.0,0.00018602,2]
[334621184,1723356639885,-150.0,0.00018602,2]
[334621186,1723356639896,-150.0,0.00018603,2]
[334621188,1723356639906,-150.0,0.00018609,2]
[334621190,1723356639916,-150.0,0.00018611,2]
[334621192,1723356639925,-150.0,0.00018612,2]
[334621194,1723356639935,-150.0,0.00018612,2]
[334621196,1723356639945,-150.0,0.00018614,2]
[334621198,1723356639954,-150.0,0.00018616,2]
[334621200,1723356639963,-150.0,0.00018617,2]
[334621202,1723356639974,-150.0,0.00018621,2]
[334621204,1723356639983,-150.0,0.00018625,2]
[334621206,1723356639992,-5133.0,0.00018626,2]
[334621208,1723356640002,-2890.061,0.00018626,2]
[334621210,1723356640011,-1672.0,0.00018626,2]
[334621212,1723356640020,-21754.0,0.00018626,2]
[334621214,1723356640029,-1204.0,0.00018626,2]
[334621216,1723356640038,-150.0,0.00018632,2]
[334621218,1723356640047,-150.0,0.00018635,2]
[334621220,1723356640057,-150.0,0.00018636,2]
[334621222,1723356640066,-150.0,0.00018636,2]
[334621224,1723356640075,-150.0,0.00018639,2]
[334621226,1723356640084,-150.0,0.00018639,2]
[334621228,1723356640093,-150.0,0.00018641,2]
[334621230,1723356640103,-150.0,0.00018641,2]
[334621231,1723356640112,-150.0,0.00018642,2]
[334621233,1723356640121,-150.0,0.00018647,2]
[334621235,1723356640130,-150.0,0.00018652,2]
[334621237,1723356640139,-150.0,0.00018653,2]
[334621239,1723356640149,-150.0,0.00018655,2]
[334621241,1723356640158,-150.0,0.00018657,2]
[334621243,1723356640168,-150.0,0.00018659,2]
[334621245,1723356640177,-150.0,0.0001866,2]
[334621247,1723356640186,-150.0,0.00018665,2]
[334621248,1723356640196,-150.0,0.00018666,2]
[334621249,1723356640205,-150.0,0.00018669,2]
[334621250,1723356640215,-150.0,0.00018671,2]
[334621251,1723356640225,-150.0,0.00018672,2]
[334621252,1723356640234,-150.0,0.00018674,2]
[334621253,1723356640243,-150.0,0.00018682,2]
[334621254,1723356640254,-150.0,0.00018687,2]
[334621255,1723356640263,-150.0,0.00018697,2]
[334621256,1723356640273,-150.0,0.00018699,2]
[334621257,1723356640283,-150.0,0.00018699,2]
[334621258,1723356640292,-150.0,0.00018699,2]
[334621259,1723356640302,-150.0,0.00018701,2]
[334621260,1723356640312,-13429.9487932,0.00018702,3]
[334621261,1723356640322,-150.0,0.00018705,2]
[334621262,1723356640332,-150.0,0.00018712,2]
[334621263,1723356640342,-150.0,0.00018712,2]
[334621264,1723356640351,-150.0,0.00018715,2]
[334621266,1723356640361,-150.0,0.00018716,2]
[334621268,1723356640370,-150.0,0.00018718,2]
[334621270,1723356640380,-150.0,0.0001872,2]
[334621272,1723356640389,-150.0,0.00018723,2]
[334621274,1723356640399,-150.0,0.00018725,2]
[334621276,1723356640408,-150.0,0.00018729,2]
[334621278,1723356640417,-150.0,0.00018735,2]
[334621280,1723356640427,-150.0,0.00018735,2]
[334621282,1723356640437,-150.0,0.00018738,2]
[334621284,1723356640446,-150.0,0.00018739,2]
[334621286,1723356640455,-150.0,0.0001874,2]
[334621288,1723356640464,-150.0,0.00018741,2]
[334621290,1723356640473,-150.0,0.00018742,2]
[334621292,1723356640483,-150.0,0.00018744,2]
[334621294,1723356640492,-150.0,0.00018745,2]
[334621296,1723356640502,-150.0,0.00018748,2]
[334621298,1723356640511,-150.0,0.00018749,2]
[334621300,1723356640521,-150.0,0.0001875,2]
[334621302,1723356640530,-150.0,0.00018751,2]
[334621304,1723356640540,-150.0,0.00018752,2]
[334621306,1723356640549,-150.0,0.00018754,2]
[334621308,1723356640559,-150.0,0.00018754,2]
[334621310,1723356640568,-150.0,0.00018758,2]
[334621312,1723356640578,-150.0,0.00018759,2]
[334621314,1723356640587,-150.0,0.00018761,2]
[334621316,1723356640596,-150.0,0.00018761,2]
[334621318,1723356640605,-150.0,0.00018761,2]
[334621320,1723356640614,-150.0,0.00018761,2]
[334621322,1723356640623,-1136.0,0.00018761,2]
[334621324,1723356640632,-446.0,0.00018761,2]
[334621326,1723356640641,-303.446,0.00018761,2]
[334621328,1723356640651,-551.0,0.00018761,2]
[334621330,1723356640660,-1132.0,0.00018761,2]
[334621332,1723356640670,-150.0,0.00018763,2]
[334621334,1723356640679,-150.0,0.00018765,2]
[334621336,1723356640688,-150.0,0.00018766,2]
[334621338,1723356640697,-150.0,0.00018769,2]
[334621340,1723356640706,-150.0,0.00018771,2]
[334621342,1723356640716,-150.0,0.00018771,2]
[334621344,1723356640725,-150.0,0.00018772,2]
[334621346,1723356640734,-150.0,0.00018773,2]
[334621348,1723356640743,-150.0,0.00018775,2]
[334621350,1723356640752,-150.0,0.00018779,2]
[334621352,1723356640763,-150.0,0.0001878,2]
[334621354,1723356640772,-200.0,0.00018781,2]
[334621356,1723356640781,-150.0,0.00018782,2]
[334621358,1723356640790,-7727.0,0.000188,2]
[334621360,1723356640799,-2502.69816447,0.0001889,3]
[334621475,1723356641959,537.59289594,0.00015,2]
[334621494,1723356642143,-302.49999997,0.00015626,2]
[334621496,1723356642154,-773.50000003,0.00015626,2]
[334621498,1723356642163,-1074.0,0.00018626,2]
[334621500,1723356642172,-3714.2473108,0.0001889,3]
[334621502,1723356642183,-1273.85588048,0.0001889,3]
[334621658,1723356643673,-268.78100681,0.00018182,2]
[334621902,1723356645961,-623.74075377,0.00018182,2]
[334621916,1723356646090,-1138.65459664,0.00018182,2]
[334621917,1723356646101,-1250.0945842,0.00018182,2]
[334621918,1723356646113,-2218.84058109,0.00018182,2]
[334622172,1723356648708,537.59289594,0.00015,2]
[334622173,1723356648736,9492.4328226,0.00015,2]
[334623048,1723356703637,297.51,0.00024939,120]
[334623058,1723356733344,500.72,0.00013973,2]
[334623060,1723356736409,340.97583371,0.00015,4]
[334623061,1723356737307,99522.06629998,0.00015,2]
[334623062,1723356739148,155.0,0.00015,2]
[334623066,1723356754408,22093.86807285,0.00015,2]
[334623068,1723356769726,537.59289594,0.00015,2]
[334623073,1723356793410,436.12253463,0.00015,4]
[334623074,1723356799728,537.59289594,0.00015,2]
[334623077,1723356845429,22093.86807285,0.00015,2]
[334623082,1723356909731,413.62745571,0.00015,2]
[334623088,1723356920154,207.72686877,0.00015,2]
[334623089,1723356926202,2385.9620191,0.00014988,2]
[334623090,1723356931410,22093.86807285,0.00015,2]
[334623096,1723357024384,1266.32300597,0.00015,2]
[334623097,1723357026416,22093.86807285,0.00015,2]
[334623103,1723357114479,22093.86807285,0.00015,2]
[334623105,1723357208122,193.89,0.00013973,2]
[334623106,1723357210436,22093.86807285,0.00015,2]
[334623109,1723357295174,787.77,0.00014242,2]
[334623110,1723357301946,13108.21799744,0.00015,2]
[334623125,1723357508849,777818.69199463,0.00011,2]
[334623168,1723357643348,5000.0,0.00014988,2]
[334623172,1723357690846,5000.0,0.00013333,2]
[334623192,1723357831935,-538.88,0.0001501,2]
[334623198,1723357831975,-461.12,0.0001501,2]
[334623200,1723357831986,-1000.0,0.00015184,2]
[334623202,1723357831997,-1000.0,0.00015235,2]
[334623204,1723357832006,-1000.0,0.00015311,2]
[334623206,1723357832015,-1000.0,0.00015387,2]
[334623208,1723357832025,-1000.0,0.00015539,2]
[334623210,1723357832034,-1000.0,0.00015615,2]
[334623212,1723357832044,-2200.59357442,0.0001587,2]
[334623214,1723357832053,-549.293,0.00016006,2]
[334623216,1723357832063,-1132.0,0.00016006,2]
[334623217,1723357832072,-15829.683,0.00016006,2]
[334623218,1723357832082,-3818.57,0.00016006,2]
[334623219,1723357832091,-1522.814,0.00016006,2]
[334623220,1723357832101,-162.53,0.00016152,2]
[334623221,1723357832110,-499.99,0.00016152,2]
[334623222,1723357832120,-5442.18,0.00016152,2]
[334623223,1723357832130,-21807.58490013,0.0001618,2]
[334623224,1723357832140,-1257.41208312,0.00016232,2]
[334623225,1723357832149,-999.99,0.00016341,2]
[334623226,1723357832159,-1000.0,0.00016341,2]
[334623227,1723357832168,-962.32288894,0.0001647,2]
[334623228,1723357832178,-787.77,0.00016505,2]
[334623229,1723357832187,-1764.09435652,0.00016598,2]
[334623230,1723357832196,-159.84,0.00016644,2]
[334623231,1723357832206,-655.67,0.00016686,2]
[334623232,1723357832216,-500.0,0.000167,2]
[334623233,1723357832225,-150.99,0.000167,2]
[334623234,1723357832235,-150.99,0.000167,2]
[334623235,1723357832246,-250.0,0.00016704,2]
[334623236,1723357832255,-200.0,0.00016751,2]
[334623237,1723357832265,-23890.0,0.00016783,2]
[334623238,1723357832275,-286.0,0.00016799,2]
[334623239,1723357832285,-250.0,0.00016812,2]
[334623240,1723357832295,-223.05,0.0001682,2]
[334623241,1723357832305,-223.05,0.00016824,2]
[334623242,1723357832320,-223.05,0.00016829,2]
[334623243,1723357832329,-223.05,0.00016833,2]
[334623244,1723357832338,-5163.38,0.00016833,2]
[334623245,1723357832348,-223.05,0.00016837,2]
[334623246,1723357832357,-223.05,0.00016842,2]
[334623247,1723357832367,-1000.0,0.00016844,2]
[334623248,1723357832376,-223.05,0.00016846,2]
[334623249,1723357832385,-223.05,0.00016851,2]
[334623250,1723357832395,-547.78190811,0.00016855,2]
[334623251,1723357832405,-223.05,0.00016855,2]
[334623252,1723357832414,-223.05,0.0001686,2]
[334623253,1723357832424,-223.05,0.00016864,2]
[334623254,1723357832434,-223.05,0.00016869,2]
[334623255,1723357832443,-223.05,0.00016873,2]
[334623257,1723357832452,-223.05,0.00016877,2]
[334623259,1723357832462,-223.05,0.00016882,2]
[334623262,1723357832471,-223.05,0.00016886,2]
[334623265,1723357832481,-223.05,0.00016891,2]
[334623268,1723357832491,-223.05,0.00016895,2]
[334623271,1723357832500,-536.06210922,0.00016897,2]
[334623274,1723357832510,-223.05,0.000169,2]
[334623277,1723357832519,-223.05,0.00016904,2]
[334623280,1723357832528,-313.69504062,0.00016948,2]
[334623283,1723357832537,-313.69504062,0.00016948,2]
[334623286,1723357832546,-155.0,0.00016949,2]
[334623289,1723357832556,-155.0,0.00016949,2]
[334623291,1723357832565,-287.2133825,0.00016949,2]
[334623294,1723357832575,-624.33214489,0.0001695,2]
[334623297,1723357832584,-624.33214489,0.0001695,2]
[334623299,1723357832593,-155.73849284,0.00016953,2]
[334623301,1723357832602,-508.88021704,0.00016999,2]
[334623303,1723357832612,-179.42836704,0.00016999,2]
[334623306,1723357832621,-607.93123328,0.00017259,2]
[334623309,1723357832631,-303.96272991,0.00017399,2]
[334623311,1723357832640,-522.80021426,0.00017458,2]
[334623313,1723357832650,-3294.168,0.00017589,2]
[334623315,1723357832659,-414.84500695,0.00017608,2]
[334623317,1723357832670,-526.66030387,0.00017636,2]
[334623319,1723357832679,-2461.4,0.00017728,2]
[334623321,1723357832688,-1170.59,0.00017728,2]
[334623323,1723357832699,-308.26193439,0.00018,2]
[334623325,1723357832708,-676.33354543,0.00018,2]
[334623327,1723357832718,-4607.05038101,0.0001808,2]
[334623330,1723357832731,-392.94961899,0.0001808,2]
[334623331,1723357832740,-226.53113258,0.00018081,2]
[334623334,1723357832756,-976.946,0.00016006,2]
[334623336,1723357832766,-484.81268304,0.00018081,2]
[334623338,1723357832775,-791.07402663,0.00018081,2]
[334623340,1723357832785,-297.51,0.00018138,2]
[334623342,1723357832795,-420.30226764,0.00018389,2]
[334623344,1723357832805,-167.0,0.00018442,2]
[334623346,1723357832815,-2443.46435883,0.000186,2]
[334623348,1723357832825,-6954.0,0.000186,2]
[334623350,1723357832834,-1000.0,0.000186,2]
[334623352,1723357832844,-1446.75926,0.0001861,2]
[334623353,1723357832853,-150.0,0.00018615,2]
[334623355,1723357832869,-150.0,0.00018618,2]
[334623357,1723357832878,-150.0,0.00018619,2]
[334623359,1723357832888,-150.0,0.00018619,2]
[334623361,1723357832898,-150.0,0.00018621,2]
[334623363,1723357832908,-150.0,0.00018621,2]
[334623365,1723357832918,-150.0,0.00018627,2]
[334623367,1723357832927,-150.0,0.00018634,2]
[334623369,1723357832937,-150.0,0.00018636,2]
[334623371,1723357832946,-150.0,0.00018638,2]
[334623373,1723357832956,-150.0,0.00018639,2]
[334623375,1723357832965,-150.0,0.00018642,2]
[334623377,1723357832974,-150.0,0.00018642,2]
[334623379,1723357832984,-150.0,0.00018644,2]
[334623380,1723357832994,-150.0,0.00018646,2]
[334623382,1723357833003,-150.0,0.00018652,2]
[334623384,1723357833013,-150.0,0.00018655,2]
[334623386,1723357833022,-150.0,0.00018655,2]
[334623388,1723357833031,-150.0,0.00018658,2]
[334623390,1723357833040,-150.0,0.00018658,2]
[334623392,1723357833050,-150.0,0.0001866,2]
[334623394,1723357833059,-150.0,0.00018663,2]
[334623396,1723357833069,-150.0,0.00018665,2]
[334623398,1723357833078,-150.0,0.00018667,2]
[334623400,1723357833088,-150.0,0.00018667,2]
[334623402,1723357833098,-150.0,0.00018669,2]
[334623404,1723357833108,-150.0,0.00018677,2]
[334623406,1723357833118,-150.0,0.0001868,2]
[334623408,1723357833127,-150.0,0.0001868,2]
[334623410,1723357833136,-150.0,0.00018682,2]
[334623412,1723357833146,-150.0,0.00018689,2]
[334623414,1723357833155,-150.0,0.00018691,2]
[334623415,1723357833165,-150.0,0.00018693,2]
[334623417,1723357833175,-150.0,0.00018697,2]
[334623419,1723357833184,-150.0,0.00018709,2]
[334623421,1723357833194,-150.0,0.00018709,2]
[334623423,1723357833203,-150.0,0.00018714,2]
[334623425,1723357833213,-150.0,0.00018719,2]
[334623427,1723357833222,-150.0,0.0001872,2]
[334623429,1723357833232,-150.0,0.00018721,2]
[334623431,1723357833241,-150.0,0.00018725,2]
[334623433,1723357833251,-150.0,0.00018732,2]
[334623435,1723357833260,-150.0,0.00018732,2]
[334623437,1723357833270,-150.0,0.00018733,2]
[334623439,1723357833279,-150.0,0.00018736,2]
[334623441,1723357833289,-150.0,0.00018742,2]
[334623443,1723357833299,-150.0,0.00018742,2]
[334623445,1723357833308,-150.0,0.00018744,2]
[334623447,1723357833322,-150.0,0.00018746,2]
[334623449,1723357833331,-150.0,0.00018749,2]
[334623451,1723357833341,-150.0,0.00018749,2]
[334623453,1723357833350,-150.0,0.00018751,2]
[334623455,1723357833362,-26.98549386,0.00018751,2]
[334623457,1723357833374,-123.01450614,0.00018751,2]
[334623459,1723357833384,-150.0,0.00018752,2]
[334623461,1723357833395,-150.0,0.00018755,2]
[334623463,1723357833405,-150.0,0.00018756,2]
[334623465,1723357833414,-150.0,0.00018758,2]
[334623467,1723357833424,-150.0,0.00018759,2]
[334623469,1723357833433,-150.0,0.0001876,2]
[334623470,1723357833444,-150.0,0.0001876,2]
[334623472,1723357833453,-150.0,0.00018766,2]
[334623474,1723357833463,-150.0,0.00018768,2]
[334623476,1723357833473,-150.0,0.00018768,2]
[334623478,1723357833482,-787.77,0.00018769,2]
[334623480,1723357833493,-150.0,0.00018772,2]
[334623482,1723357833503,-150.0,0.00018775,2]
[334623484,1723357833512,-1820.55204358,0.00018785,2]
[334623486,1723357833524,-48213.54434775,0.00018785,2]
[334623488,1723357833534,-150.0,0.00018787,2]
[334623490,1723357833544,-150.0,0.00018788,2]
[334623492,1723357833554,-150.0,0.00018788,2]
[334623494,1723357833563,-150.0,0.00018791,2]
[334623496,1723357833572,-150.0,0.00018796,2]
[334623498,1723357833582,-150.0,0.00018804,2]
[334623500,1723357833593,-150.0,0.00018813,2]
[334623501,1723357833603,-150.0,0.00018814,2]
[334623502,1723357833612,-150.0,0.00018816,2]
[334623503,1723357833623,-150.0,0.00018817,2]
[334623504,1723357833632,-150.0,0.00018819,2]
[334623505,1723357833642,-150.0,0.00018821,2]
[334623506,1723357833652,-150.0,0.00018824,2]
[334623507,1723357833661,-150.0,0.00018828,2]
[334623508,1723357833670,-150.0,0.0001883,2]
[334623511,1723357833870,-150.0,0.00018834,2]
[334623512,1723357833880,-150.0,0.00018837,2]
[334623513,1723357833890,-150.0,0.00018839,2]
[334623514,1723357833900,-150.0,0.00018842,2]
[334623515,1723357833910,-162.53,0.00018844,2]
[334623516,1723357833921,-150.0,0.00018846,2]
[334623517,1723357833930,-150.0,0.00018846,2]
[334623518,1723357833940,-150.0,0.0001885,2]
[334623519,1723357833950,-150.0,0.0001885,2]
[334623520,1723357833959,-150.0,0.00018851,2]
[334623521,1723357833969,-150.0,0.00018851,2]
[334623522,1723357833978,-150.0,0.00018856,2]
[334623523,1723357833988,-150.0,0.00018856,2]
[334623524,1723357833999,-150.0,0.00018856,2]
[334623525,1723357834008,-150.0,0.00018861,2]
[334623526,1723357834018,-150.0,0.00018862,2]
[334623527,1723357834028,-150.0,0.00018866,2]
[334623528,1723357834038,-150.0,0.00018867,2]
[334623529,1723357834047,-150.0,0.00018874,2]
[334623530,1723357834057,-150.0,0.00018874,2]
[334623531,1723357834066,-150.0,0.00018879,2]
[334623532,1723357834076,-150.0,0.00018885,2]
[334623533,1723357834085,-3459.14005421,0.00018885,2]
[334623534,1723357834099,-919.20143779,0.00018885,2]
[334623535,1723357834110,-138.09856221,0.00018885,2]
[334623536,1723357834121,-1223.99591334,0.00018885,2]
[334623537,1723357834132,-551.46904425,0.00018885,2]
[334623538,1723357834143,-414.96820624,0.00018885,2]
[334623548,1723357837966,-227.88670224,0.00016799,2]
[334623550,1723357837975,-624.33214489,0.00016949,2]
[334623552,1723357837985,-526.66030387,0.00017608,2]
[334623555,1723357837995,-711.34381562,0.00017807,2]
[334623556,1723357838004,-350.34591779,0.00018885,2]
[334623560,1723357838189,-111.07837817,0.00018885,2]
[334623561,1723357838198,-439.52199284,0.00018885,2]
[334623562,1723357838218,-448.7075297,0.00018885,2]
[334623563,1723357838230,-319.113795,0.00018885,2]
[334623564,1723357838249,-30431.65434056,0.00018885,2]
[334623565,1723357838258,-532.23204231,0.00018898,2]
[334623566,1723357838267,-1139.0,0.000189,2]
[334623567,1723357838276,-1000.0,0.0001895,2]
[334623568,1723357838285,-1423.82047201,0.00018979,2]
[334623569,1723357838294,-155.0,0.00019,2]
[334623570,1723357838304,-777.05507263,0.00019,2]
[334623571,1723357838317,-167.0,0.00019051,2]
[334623572,1723357838327,-1568.11557459,0.00019073,3]
[334623573,1723357838380,-1470.87908501,0.00019073,3]
[334623574,1723357838393,-8876.24049101,0.00019073,3]
[334623575,1723357838404,-12200.0,0.00019073,3]
[334623576,1723357838415,-11491.499373,0.00019073,3]
[334623577,1723357838427,-727.29448223,0.00019073,3]
[334623578,1723357838439,-610.09299413,0.00019073,3]
[334623622,1723357840076,-18745.54263677,0.00019073,3]
[334623623,1723357840088,-335.86804474,0.00019073,3]
[334623624,1723357840099,-1172.31886371,0.00019073,3]
[334623625,1723357840110,-278.90148228,0.00019073,3]
[334623626,1723357840121,-3865.94292673,0.00019073,3]
[334623627,1723357840131,-500.0,0.00019079,2]
[334623628,1723357840140,-132952.8426042,0.00019083,2]
[334623629,1723357840229,-568.13080662,0.00019083,2]
[334623630,1723357840240,-510.399,0.00019083,2]
[334623631,1723357840278,-653.72928139,0.00019083,2]
[334623632,1723357840290,-1181.8693022,0.00019083,2]
[334623633,1723357840320,-669.5826803,0.00019083,2]
[334623634,1723357840331,-372.54976656,0.00019083,2]
[334623635,1723357840360,-1596.00720827,0.00019083,2]
[334623636,1723357840372,-1269.31016739,0.00019083,2]
[334623642,1723357842979,-1000.0,0.00019083,2]
[334623643,1723357842991,-2320.0,0.00019083,2]
[334623644,1723357843003,-630.60956954,0.00019083,2]
[334623650,1723357844002,-4952.35162039,0.00019083,2]
[334623651,1723357844014,-705.4608378,0.00019083,2]
[334623652,1723357844024,-517.2950276,0.00019083,2]
[334623653,1723357844036,-697.56419166,0.00019083,2]
[334623654,1723357844047,-353.59513999,0.00019083,2]
[334623655,1723357844058,-7365.15577,0.00019083,2]
[334623656,1723357844069,-793.22381522,0.00019083,2]
[334623657,1723357844080,-6406.76252833,0.00019083,2]
[334623658,1723357844092,-7130.5,0.00019083,2]
[334623664,1723357846159,-291.09122005,0.0001647,2]
[334623665,1723357846171,-281.818872,0.0001647,2]
[334623666,1723357846283,-264.208,0.0001647,2]
[334623667,1723357846422,-125.20479689,0.0001647,2]
[334623668,1723357846432,-791.07402663,0.00017807,2]
[334623669,1723357846443,-2442.49817467,0.00019019,2]
[334623670,1723357846455,-419.28829913,0.00019019,2]
[334623671,1723357846466,-300.0,0.00019019,2]
[334623675,1723357884769,3705.6295,0.0001491,2]
[334623676,1723357950511,872.12298117,0.0001491,2]
[334623679,1723357962223,232.26068309,0.0001491,2]
[334623680,1723357963775,7590.88303337,0.0001491,2]
[334623681,1723357965601,974.95822301,0.0001491,2]
[334623682,1723357969734,18602.21270159,0.0001491,2]
[334623683,1723357977303,227.74801183,0.0001491,2]
[334623684,1723357977587,580.35813967,0.0001491,2]
[334623685,1723357977777,426.56495111,0.0001491,2]
[334623686,1723357979336,450.18355467,0.0001491,2]
[334623687,1723357979368,124253.38750028,0.0001491,2]
[334623695,1723358291383,155.69,0.00013973,2]
[334623697,1723358407574,1379.57,0.00011,2]
[334623698,1723358445746,15479.68735624,0.00014988,2]
[334623699,1723358447403,833.22,0.00014722,2]
[334623700,1723358489532,35724.26465717,0.00014988,2]
[334623701,1723358555509,54034.17671418,0.00014988,2]
[334623705,1723358779724,35714.77383009,0.00014988,2]
[334623713,1723358897018,2840.45885609,0.00014988,2]
[334623725,1723359005990,2602.0,0.00015,2]
[334623726,1723359020952,791.55,0.00013719,2]
[334623734,1723359032168,-1002.293869,0.00015264,2]
[334623735,1723359032180,-995.87545876,0.00015264,2]
[334623736,1723359032304,-3739.40528024,0.00015264,2]
[334623737,1723359032314,-166.58188268,0.00015341,2]
[334623738,1723359032326,-29.98161911,0.00015341,2]
[334623739,1723359032335,-1000.0,0.00015366,2]
[334623740,1723359032344,-1000.0,0.00015441,2]
[334623741,1723359032353,-1000.0,0.0001554,2]
[334623742,1723359032362,-1000.0,0.0001562,2]